Cogmind - Beta 14 @@@ ROGUE MODE // 2024.12.31 @ 13:55:26 Player: weedlord420 Result: Destroyed by D-53 Grenadier with Mini Grenade Launcher Performance ------------- Evolutions (0) 0 Regions Visited (2) 400 Robots Destroyed (11) 55 Value Destroyed (223) 223 Prototype IDs (0) 0 Alien Tech Used (0) 0 Bonus (0) 0 TOTAL SCORE: 678 Bonus ------- None Cogmind --------- Core Integrity 0/250 Matter 220/300 Energy 99/100 System Corruption 1% Temperature Cool (0) Movement Core (150) Ox2 Location -10/Mines Parts ------- > --- POWER (1) -------- (None) > --- PROPULSION (2) --- (None) > --- UTILITY (2) ------ Small Storage Unit > --- WEAPON (2) ------- Shotgun > --- INVENTORY (8) ---- Wheel Compact Wheel Experimental Sensor Array Signal Interpreter Grenade Launcher Mace Peak State ------------ > --- POWER ------------ Light Nuclear Core > --- PROPULSION ------- Light Treads Light Treads > --- UTILITY ---------- Improved Heat Sink Small Storage Unit > --- WEAPON ----------- Shotgun Shotgun > --- INVENTORY -------- Light Treads Wheel Compact Wheel Signal Interpreter Assault Rifle Shotgun Grenade Launcher Mace [Rating: 14] Favorites ----------- Power Light Nuclear Core Engine Ion Engine Power Core Light Nuclear Core Propulsion Light Treads Treads Light Treads Wheel Wheel Utility Small Storage Unit Device Improved Heat Sink Storage Small Storage Unit Weapon Shotgun Ballistic Gun Shotgun Build | -11 -10 -10 ------- Run | Yrd Mat Min Slots Evolved . | . . . Power . | . . . Propulsion . | . . . Utility . | . . . Weapon . | . . . Parts Attached 17 | 8 5 4 Power 2 | 1 1 . Engine 1 | 1 . . Core 1 | . 1 . Reactor . | . . . Propulsion 7 | 4 1 2 Treads 5 | 3 1 1 Leg . | . . . Wheel 2 | 1 . 1 Hover . | . . . Flight . | . . . Utility 2 | 1 1 . Device 1 | . 1 . Storage 1 | 1 . . Processor . | . . . Hackware . | . . . Protection . | . . . Artifact . | . . . Weapon 6 | 2 2 2 Energy Gun . | . . . Energy Cannon . | . . . Ballistic Gun 6 | 2 2 2 Ballistic Cannon . | . . . Launcher . | . . . Special Weapon . | . . . Impact Weapon . | . . . Slashing Weapon . | . . . Piercing Weapon . | . . . Special Melee Weapon . | . . . Unidentified Prototypes . | . . . Parts Lost 7 | . . 7 Power 1 | . . 1 Propulsion 2 | . . 2 Utility 1 | . . 1 Weapon 3 | . . 3 Highest Loss Streak 7 | . . 7 To Critical Strikes . | . . . Average Slot Usage (%) 92 | . 92 93 Engine 6 | . 7 . Core 7 | . 6 12 Treads 27 | . 28 22 Device 7 | . 6 11 Storage 14 | . 14 14 Ballistic Gun 27 | . 28 26 Peak Build Rating 14 | 6 14 14 Average Rating 10 | 3 10 13 On Entrance 6 | . 6 14 Naked Turns . | . . . Heaviest Build 17 | 13 17 17 Greatest Support 40 | 40 40 40 Greatest Overweight (x) 1 | . . 1 Average Overweight (x) . | . . . Largest Inventory Capacity 8 | 8 8 8 Average Capacity 7 | 6 8 8 Most Carried 8 | 6 8 8 Average Carried 6 | 3 6 7 Final Capacity 8 | 8 8 8 Final Carried 8 | 3 8 6 Class Distribution -------------------- 100% | Mutant Dominant Class ---------------- Mutant | -10/Materials Mutant | -10/Mines Resources | -11 -10 -10 ----------- Run | Yrd Mat Min Matter Collected 498 | 253 245 . Remotely . | . . . Salvage Created 286 | . 286 . Parts 24 | . 24 . Haulers Intercepted . | . . . Recyclers Shooed . | . . . Parts Field Recycled . | . . . Retrieved Matter . | . . . Parts Self-Destructed . | . . . Prevented . | . . . Kills | -11 -10 -10 ------- Run | Yrd Mat Min Combat Hostiles Destroyed 10 | . 10 . Guns 10 | . 10 . Classes Destroyed 3 | . 3 . Worker 1 | . 1 . Swarmer 6 | . 6 . Grunt 4 | . 4 . Best Kill Streak 6 | . 6 . Combat Bots Only 5 | . 5 . Max Kills in Single Turn 2 | . 2 . Gunslinging . | . . . Exploded . | . . . Melee . | . . . Uniques/NPCs Destroyed . | . . . Combat | -11 -10 -10 -------- Run | Yrd Mat Min Hostile Shots Fired 56 | . 32 24 Missed 8 | . 6 2 Damage Taken 1165 | . 289 876 Core 258 | . 10 248 Absorbed by Shields . | . . . Core Remaining (%) 100 | 100 . . Volleys Fired 34 | . 24 10 Largest 2 | . 2 2 Hottest 46 | . 46 46 Shots Fired 64 | . 48 16 Gun 64 | . 48 16 Cannon . | . . . Launcher . | . . . Special . | . . . Kinetic 64 | . 48 16 Thermal . | . . . Explosive . | . . . Electromagnetic . | . . . Robot Hit Streak 8 | . 6 8 Robot Miss Streak 7 | . 7 4 Penetration Max . | . . . Secondary Targets 1 | . 1 . Max Gunslinging Chain 1 | . 1 . Shots Hit Robots 44 | . 31 13 Core Hits 23 | . 19 4 Critical Kills . | . . . Critical Parts Destroyed . | . . . Critical Strikes . | . . . Melee Attacks . | . . . Impact . | . . . Slashing . | . . . Piercing . | . . . Sneak Attacks . | . . . Combat Hostiles . | . . . Follow-up Attacks . | . . . Damage Inflicted 645 | . 466 179 Guns 641 | . 462 179 Cannons . | . . . Explosions . | . . . Melee . | . . . Ramming 4 | . 4 . Kinetic 641 | . 462 179 Thermal . | . . . Explosive . | . . . Electromagnetic . | . . . Impact . | . . . Slashing . | . . . Piercing . | . . . Highest Corruption 1 | . 1 1 Average Corruption 1 | . 1 1 Corruption Purged . | . . . Corruption Blocked . | . . . Effects 5 | . 5 . Message Errors 2 | . 2 . Matter Fused 2 | . 2 . Heat Flow Errors 1 | . 1 . Overload Shots . | . . . Overflow Damage . | . . . Projectiles . | . . . Explosions . | . . . Melee . | . . . Knockbacks . | . . . Impact . | . . . Kinetic . | . . . Secondary . | . . . Self-Inflicted Damage . | . . . Shots . | . . . Rammed 2 | . 2 . Targets Rammed 2 | . 2 . Kicked . | . . . Crushed . | . . . Highest Temperature 133 | . 133 . Average Temperature 21 | . 21 . Received Heat Transfer 138 | . 138 . Siege Activations . | . . . Robots Corrupted . | . . . Combat Hostiles . | . . . Parts Fried . | . . . Impact Corruptions . | . . . Robots Melted . | . . . Combat Hostiles . | . . . Parts Melted . | . . . Heat Transferred . | . . . Parts Sabotaged . | . . . Parts Stolen . | . . . Parts Stripped . | . . . Power Chain Reactions . | . . . Alert | -11 -10 -10 ------- Run | Yrd Mat Min Peak Influence 295 | . 295 42 Initial 42 | . . 42 Average 65 | . 75 37 Maximum Alert Level 1 | . 1 . Low Security (%) 95 | 100 93 100 Level 1 4 | . 6 . Level 2 . | . . . Level 3 . | . . . Level 4 . | . . . Level 5 . | . . . High Security . | . . . Max Security . | . . . Squads Dispatched . | . . . Investigation . | . . . Extermination . | . . . Reinforcement . | . . . Assault . | . . . Garrison . | . . . Intercept . | . . . Searches Triggered . | . . . Construction Impeded . | . . . Haulers Reinforced . | . . . Active Scanning Responses . | . . . Cargo Convoy Interrupts . | . . . Stealth | -11 -10 -10 --------- Run | Yrd Mat Min Distress Signals 1 | . 1 . Communications Jammed . | . . . Distress Signals . | . . . Times Spotted 16 | . 11 5 Peak Tracking Total 5 | . 5 3 Tactical Retreats . | . . . Traps | -11 -10 -10 ------- Run | Yrd Mat Min Traps Triggered . | . . . Indirectly . | . . . Trap Hack Attempts . | . . . Triggered . | . . . Disarmed . | . . . Reprogrammed . | . . . Reused . | . . . Traps Extracted . | . . . Installed . | . . . Triggered . | . . . Machines | -11 -10 -10 ---------- Run | Yrd Mat Min Machines Disabled . | . . . Max in Single Turn . | . . . Machines Repaired . | . . . Machines Dismantled . | . . . Machines Sabotaged . | . . . Overloaded Fab Kills . | . . . Hacking | -11 -10 -10 --------- Run | Yrd Mat Min Machines Accessed 6 | . 6 . Terminals 5 | . 5 . Fabricators . | . . . Repair Stations . | . . . Recycling Units 1 | . 1 . Scanalyzers . | . . . Garrison Access . | . . . Total Hacks 15 | . 15 . Successful 5 | . 5 . Failed 10 | . 10 . Catastrophic 2 | . 2 . Database Lockouts . | . . . Manual 9 | . 9 . Terminals 14 | . 14 . Fabricators . | . . . Repair Stations . | . . . Recycling Units 1 | . 1 . Scanalyzers . | . . . Garrison Access . | . . . Terminal Hacks 2 | . 2 . Robot Analysis 1 | . 1 . Locate Traps 1 | . 1 . Fabricator Hacks . | . . . Repair Station Hacks . | . . . Recycling Unit Hacks . | . . . Scanalyzer . | . . . Garrison Access Hacks . | . . . Unauthorized Hacks 3 | . 3 . Terminals 2 | . 2 . Botnet 1 | . 1 . Operators 1 | . 1 . Fabricators . | . . . Repair Stations . | . . . Recycling Units 1 | . 1 . Reject 1 | . 1 . Scanalyzers . | . . . Garrison Access . | . . . Data Cores Recovered . | . . . Used . | . . . Hacking Detections 6 | . 6 . Full Trace Events 1 | . 1 . Feedback Events 1 | . 1 . Corruption 1 | . 1 . Feedback Blocked . | . . . Robot Schematics Acquired . | . . . Robots Built . | . . . Authchips . | . . . Time . | . . . Total Robot Build Rating . | . . . Part Schematics Acquired . | . . . Parts Built . | . . . Authchips . | . . . Time . | . . . Total Part Build Rating . | . . . Parts Repaired . | . . . Time . | . . . Parts Recycled . | . . . Recycled Matter . | . . . Retrieved Matter . | . . . Retrieved Components . | . . . Parts Scanalyzed . | . . . Part Schematics Acquired . | . . . Parts Damaged . | . . . Bothacking | -11 -10 -10 ------------ Run | Yrd Mat Min Used RIF Installer . | . . . Robots Hacked . | . . . Non-combat . | . . . Combat . | . . . Robot Hacks Applied . | . . . Relay Couplers Released . | . . . Fabnet Peak Effective % . | . . . Robots Rewired . | . . . Allies Hacked . | . . . Hacks Repelled . | . . . Allies | -11 -10 -10 -------- Run | Yrd Mat Min Total Allies . | . . . Largest Group . | . . . Highest-Rated Group . | . . . Highest-Rated Ally . | . . . Total Orders . | . . . Ally Attacks . | . . . Total Damage . | . . . Kills . | . . . Allies Corrupted . | . . . Allies Melted . | . . . Intel | -11 -10 -10 ------- Run | Yrd Mat Min Robot Analysis Total 1 | . 1 . Derelict Logs Recovered 1 | . . 1 Drone Launches . | . . . Drone Recoveries . | . . . Exploration | -11 -10 -10 ------------- Run | Yrd Mat Min Turns Passed 869 | 55 689 125 Spaces Moved 459 | 35 356 68 Core 12 | 12 . . Treads 412 | 19 356 37 Legs . | . . . Wheels 35 | 4 . 31 Hover . | . . . Flight . | . . . Fastest Speed 50 | 50 160 95 Average Speed 152 | 113 160 130 Slowest Speed 160 | 160 160 160 Overloaded Moves . | . . . Propulsion Burnouts . | . . . Robots Hopped . | . . . Cave-ins Triggered . | . . . Exploration Rate (%) 26 | 3 54 23 Regions Visited 2 Branch Regions 1 Pre-discovered Areas . | . . . Known Exits Taken . | . . . Unknown Exits Taken 2 | 1 1 . Scrap Searched . | . . . Spaces Dug . | . . . Terrain Destroyed . | . . . Melee . | . . . Projectile . | . . . AOE . | . . . Terrain Rammed . | . . . Walls Destroyed . | . . . Machines Disabled . | . . . Actions | -11 -10 -10 --------- Run | Yrd Mat Min Total 566 | 49 428 89 Wait 36 | . 31 5 Move 457 | 34 355 68 Hop . | . . . Pick Up 14 | 6 7 1 Fast Attach 4 | 3 1 . Attach 6 | 4 . 2 Detach 1 | 1 . . Swap 7 | 1 4 2 Drop 5 | . 4 1 Fire 34 | . 24 10 Melee . | . . . Ram . | . . . Kick . | . . . Crush 2 | . 2 . Escape Stasis . | . . . Rewire . | . . . Trap . | . . . Miscellaneous . | . . . Route ------- -11/Scrapyard -10/Materials (discovered 3 exits: [*Mat x2] / [*Min]) -10/Mines History --------- Turn | Location | Event 16 | -11/Scrapyard | Discovered new exit (range 15) 56 | -11/Scrapyard | Entered Materials 146 | -10/Materials | Discovered new exit (range 14) 304 | -10/Materials | Build established: Mutant 549 | -10/Materials | Discovered new exit (range 16) 638 | -10/Materials | Discovered new exit (range 9) 745 | -10/Materials | Entered Mines 771 | -10/Mines | Learned Materials emergency access door positions 793 | -10/Mines | Assembled infested the area 798 | -10/Mines | Assisted by a Guerilla fighting off Assembled 826 | -10/Mines | Found a damaged Exp. Sensor Array with a note attached 828 | -10/Mines | Found Prototype Device 858 | -10/Mines | Core integrity fell below 50% 869 | -10/Mines | Core integrity fell below 20% 870 | -10/Mines | Destroyed by D-53 Grenadier with Mini Grenade Launcher Last Messages --------------- 00856_ U-05 Engineer builds a Wall. 00858_ Imp. Heat Sink destroyed. 00858_ R-06 Scavenger collects Targeting Computer. 00860_ The unstable cave ceiling collapses. 00861_ U-05 Engineer lays Concrete. 00861_ R-06 Scavenger collects Lgt. Ion Engine. 00862_ U-05 Engineer lays Concrete. 00862_ Lgt. Nuclear Core destroyed. 00862_ Lgt. Treads destroyed. 00863_ Assault Rifle destroyed. 00863_ U-05 Engineer lays Concrete. 00864_ The unstable cave ceiling collapses. 00864_ Destroyed Shock Absorption System. 00864_ Lgt. Treads destroyed. 00865_ U-05 Engineer lays Concrete. 00866_ The unstable cave ceiling collapses. 00866_ U-05 Engineer lays Concrete. 00868_ The unstable cave ceiling collapses. 00869_ U-05 Engineer lays Concrete. Map ----- +----------------------------------------------------+ | ?????????????????????????????????????????????????? | | ?????????????????????????????????????????????????? | | #????????????????????????????????????????????????? | | ###??????????????????????????????????????????????? | | #######????????????????????????????????????????? | | ?????????????????????????????????????????? | | #?????????????????????????????????????????????? | | #?????????????????????????????????????????????? | | ##?????????###?????????????????????????????????? | | ##?????????# ##????????????????????????????????? | | #?????????? ##???????????????????????????????? | | #?###++#### #####?????? ????????????????????? | | ### # ??????? ????????????????????? | | #?????????? ????????????????????? | | #?????????? ????????????????????? | | ### ###????#????? #????????????????????? | | ?# ## ##??????# #??? #???????? ???????????? | | ?# ### ###???????# ####"##????? #???????????? | | ###?# #????????## # #% #???? ??????????? | | ## #???# #???###### # #### ??????????? | | ?# #???# #?### ??????????? | | ? #???# ### u d ?????????? | | # ###???# % < d ?????????? | | # ??????# ## # % #????????? | | # ??????########## # r #????????? | | # ???????????????# @ % #?????????? | | # ???????????????# ## #????????? | | #????????????????# #??????????????????? | | ?????????????????# #?????????????????? | | ?????????????????## ####?????????????????? | | ??????????????????##### #####????????????????????? | | ??????????????????????##?????????????????????????? | | ?????????????????????????????????????????????????? | | ?????????????????????????????????????????????????? | | ?????????????????????????????????????????????????? | | ?????????????????????????????????????????????????? | | ?????????????????????????????????????????????????? | | ?????????????????????????????????????????????????? | | ?????????????????????????????????????????????????? | | ?????????????????????????????????????????????????? | | ?????????????????????????????????????????????????? | | ?????????????????????????????????????????????????? | | ?????????????????????????????????????????????????? | | ?????????????????????????????????????????????????? | | ?????????????????????????????????????????????????? | | | | | | | | | | | +----------------------------------------------------+ Best States ------------- Heat Dissipation 39 Energy Generation 14 Energy Capacity 250 Matter Stores 300 Matter Capacity 300 Sight Range 16 Terrain Scan Density 10 Evasion (%) 50 Recoil Reduction 2 Item Schematics ----------------- None Robot Schematics ------------------ None Fabricated ------------ Nothing Alien Tech Used ----------------- None Achievements -------------- None Challenges ------------ None Game ------ Seed SwarmScrapSegregator Manual? 0 Play Time 00:07:19 Cumulative 99.0 hours Start 2024.12.31 @ 13:49:44 End 2024.12.31 @ 13:55:26 Sessions 1 Manual Loads 0 Difficulty Rogue Special Mode None Game No. 156 Rogue 155 Adventurer 1 Explorer 0 Win Type - Total 1 Types 0/0/0/1/0/0/0/0/0 Lore% 57 Gallery% 57 Achievement% 49 Wizard Run 0 Options --------- Layout 1 ASCII 0 Keyboard 0 Movement Mouse Keybinds 0 Fullscreen 1 Font 24/Smallcaps Map View 50x35 Zoom Use 0% Tactical HUD 1 Map Filters NONE Filters NONE Steam 1 RUN: e615052d-9d12-46d7-84f4-18077187c8e7